[Event "Titled Tuesday Blitz May 31 Early 2022"]
[White "Aravindh, Chithambaram VR."]
[Black "Gunina, Valentina"]
[WhiteFideId "5072786"]
[BlackFideId "4167570"]
[WhiteElo "2561"]
[BlackElo "2381"]
[Result "1-0"]
[Round "07"]
[TimeControl "180+1"]
[Date "2022.05.31"]
[WhiteClock "0:01:43"]
[BlackClock "0:01:23"]

1. b3 {[%clk 0:03:00]}  d5 {[%clk 0:02:58]} 2. Bb2 {[%clk 0:03:00]}  c6 {[%clk 0:02:59]} 3. c4 {[%clk 0:02:58]}  Nf6 {[%clk 0:02:57]} 4. g3 {[%clk 0:02:57]}  g6 {[%clk 0:02:57]} 5. Bg2 {[%clk 0:02:58]}  Bg7 {[%clk 0:02:57]} 6. Nf3 {[%clk 0:02:58]}  O-O {[%clk 0:02:58]} 7. O-O {[%clk 0:02:59]}  a5 {[%clk 0:02:57]} 8. Nc3 {[%clk 0:02:56]}  Na6 {[%clk 0:02:55]} 9. d4 {[%clk 0:02:56]}  Bf5 {[%clk 0:02:52]} 10. Ne5 {[%clk 0:02:52]}  dxc4 {[%clk 0:02:42]} 11. bxc4 {[%clk 0:02:50]}  Nb4 {[%clk 0:02:42]} 12. e4 {[%clk 0:02:48]}  Be6 {[%clk 0:02:41]} 13. a3 {[%clk 0:02:47]}  Na6 {[%clk 0:02:41]} 14. d5 {[%clk 0:02:34]}  Bd7 {[%clk 0:02:33]} 15. Nd3 {[%clk 0:02:31]}  cxd5 {[%clk 0:02:25]} 16. cxd5 {[%clk 0:02:29]}  Rc8 {[%clk 0:02:26]} 17. e5 {[%clk 0:02:26]}  Ne8 {[%clk 0:02:24]} 18. Rc1 {[%clk 0:02:19]}  Bf5 {[%clk 0:02:24]} 19. Re1 {[%clk 0:02:10]}  Qb6 {[%clk 0:02:19]} 20. Ba1 {[%clk 0:02:03]}  Nec7 {[%clk 0:02:20]} 21. Rb1 {[%clk 0:01:57]}  Qd4 {[%clk 0:02:14]} 22. Ne4 {[%clk 0:01:54]}  Qa7 {[%clk 0:02:09]} 23. d6 {[%clk 0:01:52]}  Nd5 {[%clk 0:01:39]} 24. dxe7 {[%clk 0:01:47]}  Nxe7 {[%clk 0:01:38]} 25. Rxb7 {[%clk 0:01:46]}  Qa8 {[%clk 0:01:27]} 26. Rxe7 {[%clk 0:01:45]}  Bxe4 {[%clk 0:01:24]} 27. Bxe4 {[%clk 0:01:44]}  Qb8 {[%clk 0:01:23]} 28. Rb7 {[%clk 0:01:43]} 1-0


[Site "https://www.chess.com"]

[Event "Titled Tuesday Blitz May 31 Early 2022"]
[White "Atakhan, Abtin"]
[Black "Molina, Roberto Junio Brito"]
[WhiteFideId "22502203"]
[BlackFideId "2109450"]
[WhiteElo "2094"]
[BlackElo "2432"]
[Result "1-0"]
[Round "07"]
[TimeControl "180+1"]
[Date "2022.05.31"]
[WhiteClock "0:00:50"]
[BlackClock "0:00:04"]

1. Nf3 {[%clk 0:03:00]}  d5 {[%clk 0:03:00]} 2. d4 {[%clk 0:02:59]}  Nf6 {[%clk 0:03:00]} 3. c4 {[%clk 0:02:59]}  c6 {[%clk 0:02:59]} 4. Nc3 {[%clk 0:02:56]}  dxc4 {[%clk 0:02:59]} 5. a4 {[%clk 0:02:55]}  Bf5 {[%clk 0:02:58]} 6. Ne5 {[%clk 0:02:53]}  Nbd7 {[%clk 0:02:59]} 7. Nxc4 {[%clk 0:02:53]}  Nb6 {[%clk 0:02:59]} 8. Ne5 {[%clk 0:02:54]}  a5 {[%clk 0:02:59]} 9. h4 {[%clk 0:02:51]}  h6 {[%clk 0:02:59]} 10. f3 {[%clk 0:02:50]}  Nfd7 {[%clk 0:02:58]} 11. e4 {[%clk 0:02:47]}  Bh7 {[%clk 0:02:56]} 12. Nd3 {[%clk 0:02:47]}  e6 {[%clk 0:02:51]} 13. Be3 {[%clk 0:02:25]}  Bd6 {[%clk 0:02:46]} 14. Bf2 {[%clk 0:02:24]}  O-O {[%clk 0:02:36]} 15. Qb3 {[%clk 0:02:19]}  Kh8 {[%clk 0:02:24]} 16. Be2 {[%clk 0:02:13]}  Rb8 {[%clk 0:02:15]} 17. g4 {[%clk 0:02:12]}  f5 {[%clk 0:01:46]} 18. gxf5 {[%clk 0:01:57]}  exf5 {[%clk 0:01:47]} 19. e5 {[%clk 0:01:58]}  Be7 {[%clk 0:01:41]} 20. Nf4 {[%clk 0:01:58]}  Qe8 {[%clk 0:01:34]} 21. e6 {[%clk 0:01:45]}  Nf6 {[%clk 0:01:09]} 22. Qxb6 {[%clk 0:01:41]}  Bd6 {[%clk 0:01:10]} 23. Bg3 {[%clk 0:01:31]}  Qe7 {[%clk 0:01:05]} 24. Rg1 {[%clk 0:01:18]}  Rbe8 {[%clk 0:01:00]} 25. O-O-O {[%clk 0:01:16]}  Bb4 {[%clk 0:00:24]} 26. Bc4 {[%clk 0:01:10]}  g5 {[%clk 0:00:19]} 27. hxg5 {[%clk 0:01:09]}  hxg5 {[%clk 0:00:20]} 28. Nd3 {[%clk 0:01:03]}  f4 {[%clk 0:00:19]} 29. Bf2 {[%clk 0:00:58]}  Nh5 {[%clk 0:00:18]} 30. d5 {[%clk 0:00:56]}  Bxc3 {[%clk 0:00:12]} 31. bxc3 {[%clk 0:00:55]}  Qa3+ {[%clk 0:00:11]} 32. Qb2 {[%clk 0:00:53]}  Qxa4 {[%clk 0:00:11]} 33. Bd4+ {[%clk 0:00:53]}  Nf6 {[%clk 0:00:09]} 34. Bb3 {[%clk 0:00:50]}  Qb5 {[%clk 0:00:07]} 35. c4 {[%clk 0:00:50]}  Qa6 {[%clk 0:00:04]} 36. Bxf6+ {[%clk 0:00:50]} 1-0


[Site "https://www.chess.com"]

[Event "Titled Tuesday Blitz May 31 Early 2022"]
[White "Bachmann, Axel"]
[Black "Mitrovic, Darko R"]
[WhiteFideId "3700488"]
[BlackFideId "927023"]
[WhiteElo "2587"]
[BlackElo "2150"]
[Result "1-0"]
[Round "07"]
[TimeControl "180+1"]
[Date "2022.06.01"]
[WhiteClock "0:01:25"]
[BlackClock "0:00:01"]

1. e4 {[%clk 0:02:37]}  e6 {[%clk 0:02:59]} 2. Qe2 {[%clk 0:02:33]}  Be7 {[%clk 0:02:57]} 3. Nf3 {[%clk 0:02:31]}  d5 {[%clk 0:02:56]} 4. d3 {[%clk 0:02:29]}  Nf6 {[%clk 0:02:55]} 5. g3 {[%clk 0:02:29]}  O-O {[%clk 0:02:54]} 6. Bg2 {[%clk 0:02:30]}  c5 {[%clk 0:02:54]} 7. O-O {[%clk 0:02:25]}  Nc6 {[%clk 0:02:54]} 8. e5 {[%clk 0:02:26]}  Nd7 {[%clk 0:02:54]} 9. c4 {[%clk 0:02:27]}  dxc4 {[%clk 0:02:37]} 10. dxc4 {[%clk 0:02:27]}  b6 {[%clk 0:02:08]} 11. Rd1 {[%clk 0:02:21]}  Bb7 {[%clk 0:02:03]} 12. Nc3 {[%clk 0:02:20]}  Qc8 {[%clk 0:01:54]} 13. Bf4 {[%clk 0:02:17]}  a6 {[%clk 0:01:42]} 14. h4 {[%clk 0:02:16]}  Na7 {[%clk 0:01:13]} 15. Ne4 {[%clk 0:01:59]}  Bc6 {[%clk 0:00:57]} 16. Nd6 {[%clk 0:01:55]}  Qc7 {[%clk 0:00:43]} 17. h5 {[%clk 0:01:52]}  b5 {[%clk 0:00:41]} 18. b3 {[%clk 0:01:45]}  bxc4 {[%clk 0:00:35]} 19. bxc4 {[%clk 0:01:46]}  Bxd6 {[%clk 0:00:26]} 20. Rxd6 {[%clk 0:01:43]}  Rab8 {[%clk 0:00:21]} 21. Qd3 {[%clk 0:01:40]}  Rb2 {[%clk 0:00:16]} 22. Ng5 {[%clk 0:01:31]}  g6 {[%clk 0:00:08]} 23. Bxc6 {[%clk 0:01:30]}  Nxc6 {[%clk 0:00:07]} 24. Rxd7 {[%clk 0:01:30]}  Qb6 {[%clk 0:00:02]} 25. hxg6 {[%clk 0:01:29]}  hxg6 {[%clk 0:00:02]} 26. Rxf7 {[%clk 0:01:26]}  Rxf7 {[%clk 0:00:01]} 27. Qxg6+ {[%clk 0:01:25]}  Rg7 {[%clk 0:00:01]} 28. Qe8# {[%clk 0:01:25]} 1-0


[Site "https://www.chess.com"]

[Event "Titled Tuesday Blitz May 31 Early 2022"]
[White "Bharath Subramaniyam H"]
[Black "Milanovic, Marko"]
[WhiteFideId "46634827"]
[BlackFideId "980129"]
[WhiteElo "2242"]
[BlackElo "2151"]
[Result "1-0"]
[Round "07"]
[TimeControl "180+1"]
[Date "2022.06.01"]
[WhiteClock "0:00:09"]
[BlackClock "0:00:03"]

1. c4 {[%clk 0:03:00]}  e6 {[%clk 0:02:57]} 2. Nc3 {[%clk 0:02:59]}  d5 {[%clk 0:02:58]} 3. d4 {[%clk 0:03:00]}  Nf6 {[%clk 0:02:56]} 4. Bg5 {[%clk 0:03:00]}  Be7 {[%clk 0:02:57]} 5. e3 {[%clk 0:03:01]}  O-O {[%clk 0:02:56]} 6. Nf3 {[%clk 0:03:02]}  h6 {[%clk 0:02:57]} 7. Bh4 {[%clk 0:03:01]}  b6 {[%clk 0:02:57]} 8. cxd5 {[%clk 0:02:59]}  Nxd5 {[%clk 0:02:57]} 9. Bxe7 {[%clk 0:03:00]}  Qxe7 {[%clk 0:02:58]} 10. Nxd5 {[%clk 0:03:00]}  exd5 {[%clk 0:02:59]} 11. Rc1 {[%clk 0:03:01]}  Be6 {[%clk 0:02:56]} 12. Qb3 {[%clk 0:03:01]}  Rc8 {[%clk 0:02:55]} 13. Bb5 {[%clk 0:03:00]}  c6 {[%clk 0:02:47]} 14. Be2 {[%clk 0:02:54]}  Nd7 {[%clk 0:02:47]} 15. O-O {[%clk 0:02:49]}  c5 {[%clk 0:02:32]} 16. Qa3 {[%clk 0:02:48]}  Qf6 {[%clk 0:02:30]} 17. Bb5 {[%clk 0:02:06]}  Nf8 {[%clk 0:02:19]} 18. b3 {[%clk 0:01:16]}  Bd7 {[%clk 0:01:27]} 19. Ba6 {[%clk 0:01:11]}  Rc7 {[%clk 0:01:26]} 20. Ne5 {[%clk 0:01:08]}  Bc8 {[%clk 0:01:14]} 21. Be2 {[%clk 0:01:00]}  Bf5 {[%clk 0:01:12]} 22. Bf3 {[%clk 0:00:54]}  Qd6 {[%clk 0:01:06]} 23. Rfd1 {[%clk 0:00:48]}  Rac8 {[%clk 0:01:05]} 24. Nd3 {[%clk 0:00:35]}  Ne6 {[%clk 0:00:52]} 25. dxc5 {[%clk 0:00:34]}  bxc5 {[%clk 0:00:52]} 26. Nb2 {[%clk 0:00:27]}  d4 {[%clk 0:00:52]} 27. Nc4 {[%clk 0:00:27]}  Qe7 {[%clk 0:00:49]} 28. Bd5 {[%clk 0:00:23]}  dxe3 {[%clk 0:00:41]} 29. Nxe3 {[%clk 0:00:24]}  Nd4 {[%clk 0:00:30]} 30. Nxf5 {[%clk 0:00:22]}  Nxf5 {[%clk 0:00:31]} 31. Bc4 {[%clk 0:00:20]}  Qg5 {[%clk 0:00:29]} 32. Qb2 {[%clk 0:00:17]}  Nh4 {[%clk 0:00:25]} 33. Bf1 {[%clk 0:00:18]}  Rc6 {[%clk 0:00:20]} 34. Rc3 {[%clk 0:00:17]}  Qh5 {[%clk 0:00:15]} 35. Re1 {[%clk 0:00:15]}  Rf6 {[%clk 0:00:15]} 36. Rg3 {[%clk 0:00:15]}  Nf5 {[%clk 0:00:13]} 37. Qxf6 {[%clk 0:00:10]}  Nxg3 {[%clk 0:00:12]} 38. Qe7 {[%clk 0:00:09]}  Nxf1 {[%clk 0:00:09]} 39. Rxf1 {[%clk 0:00:10]}  Qg6 {[%clk 0:00:07]} 40. Qxa7 {[%clk 0:00:10]}  c4 {[%clk 0:00:07]} 41. bxc4 {[%clk 0:00:10]}  Rxc4 {[%clk 0:00:08]} 42. h3 {[%clk 0:00:10]}  Kh7 {[%clk 0:00:08]} 43. a4 {[%clk 0:00:09]}  Qc2 {[%clk 0:00:07]} 44. a5 {[%clk 0:00:09]}  Qa2 {[%clk 0:00:07]} 45. Qxf7 {[%clk 0:00:08]}  Ra4 {[%clk 0:00:05]} 46. Qf5+ {[%clk 0:00:09]}  Kg8 {[%clk 0:00:04]} 47. Re1 {[%clk 0:00:09]}  Qf7 {[%clk 0:00:03]} 48. Qc8+ {[%clk 0:00:09]}  Kh7 {[%clk 0:00:03]} 49. Qc2+ {[%clk 0:00:09]} 1-0


[Site "https://www.chess.com"]

[Event "Titled Tuesday Blitz May 31 Early 2022"]
[White "Bodnaruk, Anastasia"]
[Black "Harvey, Marcus R"]
[WhiteFideId "4181751"]
[BlackFideId "400092"]
[WhiteElo "2332"]
[BlackElo "2485"]
[Result "1/2-1/2"]
[Round "07"]
[TimeControl "180+1"]
[Date "2022.06.01"]
[WhiteClock "0:00:06"]
[BlackClock "0:00:07"]

1. e4 {[%clk 0:03:00]}  c5 {[%clk 0:02:59]} 2. Nc3 {[%clk 0:03:00]}  d6 {[%clk 0:02:59]} 3. Nge2 {[%clk 0:02:58]}  Nf6 {[%clk 0:02:58]} 4. d4 {[%clk 0:02:58]}  cxd4 {[%clk 0:02:58]} 5. Nxd4 {[%clk 0:02:59]}  a6 {[%clk 0:02:59]} 6. Be2 {[%clk 0:02:59]}  e5 {[%clk 0:02:59]} 7. Nb3 {[%clk 0:02:58]}  Be7 {[%clk 0:02:59]} 8. Nd5 {[%clk 0:02:57]}  Nxd5 {[%clk 0:02:54]} 9. exd5 {[%clk 0:02:54]}  O-O {[%clk 0:02:55]} 10. O-O {[%clk 0:02:51]}  a5 {[%clk 0:02:52]} 11. Be3 {[%clk 0:02:42]}  a4 {[%clk 0:02:52]} 12. Nd2 {[%clk 0:02:42]}  f5 {[%clk 0:02:19]} 13. f3 {[%clk 0:02:29]}  Bf6 {[%clk 0:02:18]} 14. Nc4 {[%clk 0:02:27]}  Ra6 {[%clk 0:02:13]} 15. Qd2 {[%clk 0:02:14]}  f4 {[%clk 0:02:07]} 16. Bf2 {[%clk 0:02:13]}  Bf5 {[%clk 0:02:05]} 17. Qb4 {[%clk 0:01:57]}  Qc7 {[%clk 0:01:50]} 18. Na3 {[%clk 0:01:47]}  Ra5 {[%clk 0:01:41]} 19. Nb5 {[%clk 0:01:47]}  Na6 {[%clk 0:01:41]} 20. Nxc7 {[%clk 0:01:28]}  Nxb4 {[%clk 0:01:41]} 21. Be1 {[%clk 0:01:19]}  Rc5 {[%clk 0:01:05]} 22. Bxb4 {[%clk 0:01:18]}  Rxc7 {[%clk 0:01:05]} 23. Bxd6 {[%clk 0:01:18]}  Rxc2 {[%clk 0:01:05]} 24. Bxf8 {[%clk 0:01:18]}  Kxf8 {[%clk 0:01:03]} 25. Bb5 {[%clk 0:01:07]}  Rxb2 {[%clk 0:01:04]} 26. Bxa4 {[%clk 0:01:06]}  Be7 {[%clk 0:01:00]} 27. Rfc1 {[%clk 0:00:54]}  b6 {[%clk 0:01:00]} 28. Rc7 {[%clk 0:00:47]}  Bc5+ {[%clk 0:00:58]} 29. Kh1 {[%clk 0:00:46]}  e4 {[%clk 0:00:56]} 30. Bd7 {[%clk 0:00:27]}  Bg6 {[%clk 0:00:47]} 31. Re1 {[%clk 0:00:12]}  e3 {[%clk 0:00:45]} 32. Be6 {[%clk 0:00:10]}  Bb4 {[%clk 0:00:40]} 33. d6 {[%clk 0:00:07]}  Bxd6 {[%clk 0:00:33]} 34. Rc8+ {[%clk 0:00:07]}  Ke7 {[%clk 0:00:33]} 35. Bc4 {[%clk 0:00:08]}  Bb4 {[%clk 0:00:33]} 36. Rg1 {[%clk 0:00:05]}  e2 {[%clk 0:00:29]} 37. Bxe2 {[%clk 0:00:05]}  Rxe2 {[%clk 0:00:28]} 38. Rc7+ {[%clk 0:00:06]}  Kf8 {[%clk 0:00:19]} 39. Rc8+ {[%clk 0:00:06]}  Be8 {[%clk 0:00:19]} 40. Rc4 {[%clk 0:00:06]}  Bd6 {[%clk 0:00:15]} 41. Rd1 {[%clk 0:00:06]}  g5 {[%clk 0:00:12]} 42. h4 {[%clk 0:00:05]}  Bc5 {[%clk 0:00:12]} 43. hxg5 {[%clk 0:00:06]}  Be3 {[%clk 0:00:12]} 44. Rc8 {[%clk 0:00:04]}  Ke7 {[%clk 0:00:11]} 45. Rc7+ {[%clk 0:00:05]}  Ke6 {[%clk 0:00:11]} 46. Rxh7 {[%clk 0:00:05]}  Bg6 {[%clk 0:00:11]} 47. Rh6 {[%clk 0:00:05]}  Kf7 {[%clk 0:00:08]} 48. Rd7+ {[%clk 0:00:04]}  Ke8 {[%clk 0:00:05]} 49. Rc7 {[%clk 0:00:04]}  Re1+ {[%clk 0:00:04]} 50. Kh2 {[%clk 0:00:04]}  Bg1+ {[%clk 0:00:05]} 51. Kh3 {[%clk 0:00:05]}  Bf5+ {[%clk 0:00:05]} 52. g4 {[%clk 0:00:04]}  fxg3+ {[%clk 0:00:05]} 53. Kxg3 {[%clk 0:00:05]}  Bd4 {[%clk 0:00:05]} 54. Rb7 {[%clk 0:00:01]}  Bd7 {[%clk 0:00:03]} 55. Rh7 {[%clk 0:00:01]}  Be5+ {[%clk 0:00:03]} 56. Kf2 {[%clk 0:00:01]}  Rd1 {[%clk 0:00:03]} 57. g6 {[%clk 0:00:01]}  Rd2+ {[%clk 0:00:03]} 58. Ke3 {[%clk 0:00:01]}  Rg2 {[%clk 0:00:04]} 59. g7 {[%clk 0:00:01]}  Rxg7 {[%clk 0:00:04]} 60. Rxg7 {[%clk 0:00:01]}  Bxg7 {[%clk 0:00:04]} 61. Rxb6 {[%clk 0:00:02]}  Kd8 {[%clk 0:00:03]} 62. Rb8+ {[%clk 0:00:02]}  Kc7 {[%clk 0:00:03]} 63. Rg8 {[%clk 0:00:02]}  Be5 {[%clk 0:00:04]} 64. f4 {[%clk 0:00:03]}  Bd6 {[%clk 0:00:04]} 65. Ke4 {[%clk 0:00:03]}  Be6 {[%clk 0:00:03]} 66. Rg7+ {[%clk 0:00:03]}  Kc6 {[%clk 0:00:04]} 67. Rg6 {[%clk 0:00:04]}  Bd5+ {[%clk 0:00:05]} 68. Kd4 {[%clk 0:00:04]}  Bxa2 {[%clk 0:00:05]} 69. f5 {[%clk 0:00:04]}  Kd7 {[%clk 0:00:05]} 70. f6 {[%clk 0:00:04]}  Bf7 {[%clk 0:00:05]} 71. Rg7 {[%clk 0:00:04]}  Ke6 {[%clk 0:00:05]} 72. Rxf7 {[%clk 0:00:04]}  Kxf7 {[%clk 0:00:05]} 73. Kd5 {[%clk 0:00:05]}  Bf4 {[%clk 0:00:06]} 74. Ke4 {[%clk 0:00:05]}  Bg5 {[%clk 0:00:06]} 75. Kd5 {[%clk 0:00:06]}  Bxf6 {[%clk 0:00:07]} 1/2-1/2


[Site "https://www.chess.com"]

[Event "Titled Tuesday Blitz May 31 Early 2022"]
[White "Chernobay, Artem"]
[Black "Meshkovs, Nikita"]
[WhiteFideId "4167406"]
[BlackFideId "11602740"]
[WhiteElo "2473"]
[BlackElo "2506"]
[Result "1-0"]
[Round "07"]
[TimeControl "180+1"]
[Date "2022.05.31"]
[WhiteClock "0:00:10"]
[BlackClock "0:00:02"]

1. e4 {[%clk 0:03:00]}  Nf6 {[%clk 0:02:58]} 2. e5 {[%clk 0:03:00]}  Nd5 {[%clk 0:02:58]} 3. d4 {[%clk 0:03:00]}  d6 {[%clk 0:02:58]} 4. Nf3 {[%clk 0:03:00]}  e6 {[%clk 0:02:58]} 5. c4 {[%clk 0:02:53]}  Nb6 {[%clk 0:02:58]} 6. Nc3 {[%clk 0:02:51]}  Be7 {[%clk 0:02:55]} 7. Bd3 {[%clk 0:02:44]}  O-O {[%clk 0:02:55]} 8. O-O {[%clk 0:02:41]}  Nc6 {[%clk 0:02:55]} 9. exd6 {[%clk 0:02:40]}  cxd6 {[%clk 0:02:55]} 10. b3 {[%clk 0:02:25]}  d5 {[%clk 0:02:42]} 11. c5 {[%clk 0:02:22]}  Nd7 {[%clk 0:02:42]} 12. Be3 {[%clk 0:02:20]}  Bf6 {[%clk 0:02:42]} 13. Rc1 {[%clk 0:02:13]}  h6 {[%clk 0:02:10]} 14. a3 {[%clk 0:02:11]}  b6 {[%clk 0:02:03]} 15. b4 {[%clk 0:02:07]}  bxc5 {[%clk 0:02:03]} 16. dxc5 {[%clk 0:02:06]}  d4 {[%clk 0:01:46]} 17. Be4 {[%clk 0:01:59]}  dxe3 {[%clk 0:01:21]} 18. Bxc6 {[%clk 0:01:59]}  Rb8 {[%clk 0:01:21]} 19. fxe3 {[%clk 0:01:38]}  Qc7 {[%clk 0:00:56]} 20. Qa4 {[%clk 0:01:22]}  Ne5 {[%clk 0:00:53]} 21. Nxe5 {[%clk 0:01:07]}  Bxe5 {[%clk 0:00:52]} 22. h3 {[%clk 0:01:07]}  f5 {[%clk 0:00:51]} 23. Ne2 {[%clk 0:00:55]}  Bb2 {[%clk 0:00:38]} 24. Rb1 {[%clk 0:00:48]}  Bf6 {[%clk 0:00:31]} 25. Nd4 {[%clk 0:00:43]}  Qg3 {[%clk 0:00:26]} 26. Rf3 {[%clk 0:00:42]}  Qg6 {[%clk 0:00:21]} 27. Bd7 {[%clk 0:00:42]}  f4 {[%clk 0:00:15]} 28. Rd1 {[%clk 0:00:35]}  Bxd7 {[%clk 0:00:10]} 29. Qxd7 {[%clk 0:00:34]}  e5 {[%clk 0:00:11]} 30. Ne6 {[%clk 0:00:31]}  Rf7 {[%clk 0:00:06]} 31. Qd5 {[%clk 0:00:28]}  Re8 {[%clk 0:00:03]} 32. e4 {[%clk 0:00:24]}  Kh7 {[%clk 0:00:02]} 33. c6 {[%clk 0:00:22]}  Bh4 {[%clk 0:00:03]} 34. Nc5 {[%clk 0:00:17]}  Qg5 {[%clk 0:00:03]} 35. Nd7 {[%clk 0:00:16]}  Bg3 {[%clk 0:00:02]} 36. b5 {[%clk 0:00:15]}  Qe7 {[%clk 0:00:02]} 37. Rc3 {[%clk 0:00:13]}  f3 {[%clk 0:00:02]} 38. Rxf3 {[%clk 0:00:11]}  Rxf3 {[%clk 0:00:03]} 39. gxf3 {[%clk 0:00:12]}  Qg5 {[%clk 0:00:03]} 40. Qf7 {[%clk 0:00:11]}  Bf4+ {[%clk 0:00:02]} 41. Kf1 {[%clk 0:00:12]}  Qg3 {[%clk 0:00:03]} 42. Qf5+ {[%clk 0:00:10]}  Kg8 {[%clk 0:00:02]} 43. Nf6+ {[%clk 0:00:08]}  gxf6 {[%clk 0:00:02]} 44. Rd7 {[%clk 0:00:09]}  Kf8 {[%clk 0:00:01]} 45. Qxf6+ {[%clk 0:00:08]}  Kg8 {[%clk 0:00:01]} 46. Qf7+ {[%clk 0:00:09]}  Kh8 {[%clk 0:00:02]} 47. Qh7# {[%clk 0:00:10]} 1-0


[Site "https://www.chess.com"]

[Event "Titled Tuesday Blitz May 31 Early 2022"]
[White "Djokic, Mihailo"]
[Black "Pichot, Alan"]
[WhiteFideId "976440"]
[BlackFideId "110973"]
[WhiteElo "2202"]
[BlackElo "2579"]
[Result "0-1"]
[Round "07"]
[TimeControl "180+1"]
[Date "2022.05.31"]
[WhiteClock "0:00:01"]
[BlackClock "0:00:43"]

1. e4 {[%clk 0:03:00]}  c5 {[%clk 0:02:59]} 2. Nf3 {[%clk 0:02:59]}  d6 {[%clk 0:02:59]} 3. d4 {[%clk 0:03:00]}  cxd4 {[%clk 0:03:00]} 4. Nxd4 {[%clk 0:03:01]}  Nf6 {[%clk 0:03:01]} 5. Nc3 {[%clk 0:03:01]}  a6 {[%clk 0:03:01]} 6. Rg1 {[%clk 0:03:01]}  h5 {[%clk 0:02:59]} 7. h3 {[%clk 0:03:01]}  h4 {[%clk 0:02:58]} 8. Bg5 {[%clk 0:02:59]}  Nc6 {[%clk 0:02:58]} 9. Qd2 {[%clk 0:02:57]}  Qb6 {[%clk 0:02:57]} 10. Nb3 {[%clk 0:02:51]}  e6 {[%clk 0:02:57]} 11. O-O-O {[%clk 0:02:42]}  Be7 {[%clk 0:02:57]} 12. Kb1 {[%clk 0:02:32]}  Qc7 {[%clk 0:02:55]} 13. f4 {[%clk 0:02:25]}  b5 {[%clk 0:02:55]} 14. Bd3 {[%clk 0:02:25]}  Bb7 {[%clk 0:02:54]} 15. Qf2 {[%clk 0:02:19]}  Nb4 {[%clk 0:02:55]} 16. Rge1 {[%clk 0:01:57]}  e5 {[%clk 0:02:02]} 17. f5 {[%clk 0:01:34]}  Rc8 {[%clk 0:01:57]} 18. a3 {[%clk 0:01:04]}  Nxd3 {[%clk 0:01:53]} 19. Rxd3 {[%clk 0:01:04]}  Ng4 {[%clk 0:01:25]} 20. Qd2 {[%clk 0:00:48]}  Bxg5 {[%clk 0:01:20]} 21. Qxg5 {[%clk 0:00:44]}  Nf6 {[%clk 0:01:21]} 22. Qxg7 {[%clk 0:00:43]}  Ke7 {[%clk 0:01:22]} 23. Qg5 {[%clk 0:00:34]}  Rhg8 {[%clk 0:01:22]} 24. Qd2 {[%clk 0:00:33]}  Rg7 {[%clk 0:01:15]} 25. Qf2 {[%clk 0:00:30]}  Rcg8 {[%clk 0:01:12]} 26. Qxh4 {[%clk 0:00:29]}  Rxg2 {[%clk 0:01:12]} 27. Red1 {[%clk 0:00:29]}  Rd8 {[%clk 0:01:08]} 28. Nd2 {[%clk 0:00:22]}  Qc5 {[%clk 0:01:03]} 29. Nf3 {[%clk 0:00:22]}  a5 {[%clk 0:00:57]} 30. R3d2 {[%clk 0:00:18]}  Rxd2 {[%clk 0:00:48]} 31. Rxd2 {[%clk 0:00:18]}  b4 {[%clk 0:00:49]} 32. axb4 {[%clk 0:00:18]}  axb4 {[%clk 0:00:50]} 33. Nd5+ {[%clk 0:00:18]}  Bxd5 {[%clk 0:00:50]} 34. Rxd5 {[%clk 0:00:18]}  Qc4 {[%clk 0:00:48]} 35. Nd2 {[%clk 0:00:11]}  Qe2 {[%clk 0:00:47]} 36. Rd3 {[%clk 0:00:07]}  Qd1+ {[%clk 0:00:43]} 37. Ka2 {[%clk 0:00:07]}  Qxc2 {[%clk 0:00:44]} 38. Ra3 {[%clk 0:00:01]}  bxa3 {[%clk 0:00:43]} 0-1


[Site "https://www.chess.com"]

[Event "Titled Tuesday Blitz May 31 Early 2022"]
[White "Durarbayli, Vasif"]
[Black "Martinez Alcantara, Jose Eduardo"]
[WhiteFideId "13402935"]
[BlackFideId "3805662"]
[WhiteElo "2528"]
[BlackElo "2690"]
[Result "0-1"]
[Round "07"]
[TimeControl "180+1"]
[Date "2022.05.31"]
[WhiteClock "0:00:01"]
[BlackClock "0:00:10"]

1. e4 {[%clk 0:03:00]}  e5 {[%clk 0:02:50]} 2. Nf3 {[%clk 0:02:58]}  Nc6 {[%clk 0:02:50]} 3. Bc4 {[%clk 0:02:58]}  Bc5 {[%clk 0:02:50]} 4. c3 {[%clk 0:02:58]}  Nf6 {[%clk 0:02:51]} 5. d3 {[%clk 0:02:59]}  d6 {[%clk 0:02:51]} 6. O-O {[%clk 0:02:59]}  a5 {[%clk 0:02:51]} 7. d4 {[%clk 0:02:56]}  Bb6 {[%clk 0:02:38]} 8. dxe5 {[%clk 0:02:44]}  Nxe5 {[%clk 0:02:29]} 9. Nxe5 {[%clk 0:02:44]}  dxe5 {[%clk 0:02:30]} 10. Qf3 {[%clk 0:02:45]}  Qe7 {[%clk 0:02:14]} 11. Na3 {[%clk 0:02:36]}  Bg4 {[%clk 0:02:08]} 12. Qg3 {[%clk 0:02:31]}  h5 {[%clk 0:02:08]} 13. Qd3 {[%clk 0:02:04]}  Rd8 {[%clk 0:02:08]} 14. Qc2 {[%clk 0:02:04]}  Qd7 {[%clk 0:02:09]} 15. Bg5 {[%clk 0:01:49]}  h4 {[%clk 0:01:59]} 16. Bb5 {[%clk 0:01:29]}  c6 {[%clk 0:01:57]} 17. Be2 {[%clk 0:01:30]}  Be6 {[%clk 0:01:25]} 18. Rad1 {[%clk 0:01:16]}  Qe7 {[%clk 0:01:25]} 19. Nc4 {[%clk 0:01:12]}  Rxd1 {[%clk 0:01:14]} 20. Rxd1 {[%clk 0:01:03]}  Bxf2+ {[%clk 0:01:14]} 21. Kxf2 {[%clk 0:01:01]}  Bxc4 {[%clk 0:01:15]} 22. Bxc4 {[%clk 0:00:12]}  Ng4+ {[%clk 0:01:00]} 23. Kg1 {[%clk 0:00:08]}  Qc5+ {[%clk 0:00:36]} 24. Kf1 {[%clk 0:00:02]}  Qxc4+ {[%clk 0:00:33]} 25. Qd3 {[%clk 0:00:02]}  Qxd3+ {[%clk 0:00:29]} 26. Rxd3 {[%clk 0:00:03]}  f6 {[%clk 0:00:28]} 27. h3 {[%clk 0:00:03]}  fxg5 {[%clk 0:00:25]} 28. hxg4 {[%clk 0:00:03]}  Rf8+ {[%clk 0:00:25]} 29. Rf3 {[%clk 0:00:02]}  Rxf3+ {[%clk 0:00:16]} 30. gxf3 {[%clk 0:00:03]}  a4 {[%clk 0:00:17]} 31. b3 {[%clk 0:00:01]}  axb3 {[%clk 0:00:16]} 32. axb3 {[%clk 0:00:02]}  Ke7 {[%clk 0:00:16]} 33. b4 {[%clk 0:00:01]}  c5 {[%clk 0:00:10]} 0-1


[Site "https://www.chess.com"]